bitfinex/quotes_SOLUSD_20250204
["timestamp","ask_amount","ask_price","bid_price","bid_amount"]
[1738686240172,29.38809548,215.81,215.73,29.38809548]
[1738686240374,46.73449548,215.89,215.79,29.38809548]
[1738686240551,29.38809548,215.85,215.77,29.38809548]
[1738686240757,29.38809548,215.83,215.75,29.38809548]
[1738686242484,16.2134,215.87,215.77,29.38809548]
[1738686242485,29.38809548,215.85,215.77,29.38809548]
[1738686242776,34.08279548,215.91,215.83,29.38809548]
[1738686243165,34.08279548,215.91,215.85,29.38809548]
[1738686243166,0.063,215.91,215.85,29.38809548]
[1738686244304,0.063,215.91,215.87,29.38809548]
[1738686244470,0.063,215.91,215.9,29.38809548]
[1738686246301,0.063,215.91,215.9,29.76456548]
[1738686246468,0.0001,215.91,215.9,30.58463701]
[1738686247866,0.0001,215.91,215.9,59.97273249]
[1738686249772,0.0001,215.91,215.9,30.58463701]
[1738686252113,0.0001,215.91,215.9,64.60443249]
[1738686252290,29.38809548,216.1,216.03,29.38809548]
[1738686252491,4.6276,216.1,216.05,29.38809548]
[1738686252709,4.6276,216.1,215.97,1.1961602]
[1738686252710,34.01569548,216.1,216.01,29.38809548]
[1738686252888,29.38809548,216.06,215.97,29.38809548]
[1738686253091,4.6285,216.05,215.97,29.38809548]
[1738686254717,11.5687,216.1,216.01,29.38809548]
[1738686254718,4.6283,216.07,216.01,29.38809548]
[1738686254890,11.5687,216.1,216.01,29.38809548]
[1738686254891,29.38809548,216.1,216.01,29.38809548]
[1738686255091,34.01549548,216.1,216.03,29.38809548]
[1738686255293,4.6274,216.1,216.03,29.38809548]
[1738686256784,4.6272,216.12,216.05,29.38809548]
[1738686256989,0.063,216.13,216.09,29.38809548]
[1738686257197,0.063,216.13,216.11,29.38809548]
[1738686257413,0.063,216.13,216.09,29.38809548]
[1738686258211,4.6898,216.13,216.09,29.38809548]
[1738686258592,0.063,216.13,216.09,29.38809548]
[1738686258807,0.063,216.13,216.09,34.01569548]
[1738686259006,0.063,216.13,216.11,29.38809548]
[1738686259322,0.063,216.13,216.12,0.94485628]
[1738686259621,0.063,216.13,216.12,1.19583628]
[1738686259781,0.063,216.13,216.11,29.38809548]
[1738686261009,0.063,216.13,216.09,29.38809548]
[1738686261207,0.063,216.13,216.11,29.38809548]
[1738686261386,0.063,216.13,216.12,1.07034744]
[1738686261591,0.063,216.13,216.12,1.19583744]
[1738686261998,0.063,216.13,216.12,0.37647]
[1738686262319,0.063,216.13,216.12,0.25098]
[1738686262500,0.063,216.13,216.07,29.38809548]
[1738686262686,0.063,216.13,216.1,20.0]
[1738686262885,0.063,216.13,216.07,29.38809548]
[1738686263115,29.45109548,216.13,216.05,49.76456548]
[1738686263318,29.38809548,216.11,216.03,29.38809548]
[1738686263484,29.38809548,216.09,216.01,29.38809548]
[1738686263684,29.38809548,216.07,215.99,29.38809548]
[1738686263995,29.38809548,216.05,215.97,29.38809548]
[1738686264499,29.38809548,216.03,215.97,29.38809548]
[1738686264709,18.0952349,216.05,215.98,18.0952349]
[1738686265021,18.0952349,216.03,215.94,38.0952349]
[1738686265597,4.6287,216.04,215.94,18.0952349]
[1738686265800,18.0952349,215.99,215.9,18.0952349]
[1738686266034,18.0952349,215.97,215.88,36.1904699]
[1738686266206,18.0952349,215.99,215.92,18.0952349]
[1738686266414,4.6287,216.04,215.96,18.0952349]
[1738686266726,4.6287,216.04,215.98,18.0952349]
[1738686267200,4.6287,216.04,215.96,18.0952349]
[1738686267395,18.0952349,216.03,215.96,18.0952349]
[1738686268430,18.0952349,216.01,215.94,18.0952349]
[1738686268725,18.0952349,215.99,215.9,18.0952349]
[1738686268925,18.0952349,215.99,215.93,20.0]
[1738686269131,4.6292,216.02,215.94,18.0952349]
[1738686269343,18.0952349,216.03,215.96,18.0952349]
[1738686269631,4.6289,216.04,215.98,18.0952349]
[1738686270130,18.0952349,215.99,215.92,18.0952349]
[1738686270332,18.0952349,215.99,215.9,18.0952349]
[1738686270512,18.0952349,215.99,215.87,0.69439256]
[1738686270513,18.0952349,215.99,215.92,18.0952349]
[1738686271023,0.12549,216.05,215.97,18.0952349]
[1738686271024,18.0952349,216.05,215.97,18.0952349]
[1738686271397,18.0952349,216.05,215.95,18.0952349]
[1738686271599,18.0952349,216.01,215.93,18.0952349]
[1738686273325,18.0952349,216.03,215.95,18.0952349]
[1738686273530,18.0952349,216.01,215.93,18.0952349]
[1738686273703,18.0952349,216.01,215.93,22.7263349]
[1738686275413,18.0952349,216.03,215.95,18.0952349]
[1738686276400,22.7243349,216.03,215.93,18.0952349]
[1738686276605,18.0952349,216.01,215.93,18.0952349]
[1738686276941,18.0952349,216.01,215.91,22.7267349]
[1738686277121,18.0952349,215.99,215.9,20.0]
[1738686277317,18.0952349,215.99,215.9,24.6317]
[1738686278240,4.63,215.98,215.91,18.0952349]
[1738686278531,18.0952349,215.99,215.91,18.0952349]
[1738686279420,18.0952349,216.01,215.93,18.0952349]
[1738686279617,4.6292,216.02,215.92,4.6313]
[1738686279618,4.6292,216.02,215.95,18.0952349]
[1738686280513,4.6292,216.02,215.95,22.7258349]
[1738686281445,4.6289,216.04,215.97,18.0952349]
[1738686281822,4.6289,216.04,215.95,18.0952349]
[1738686281823,18.2207249,216.03,215.95,18.0952349]
[1738686282035,18.0952349,215.97,215.87,18.0952349]
[1738686282212,18.0952349,215.93,215.85,18.0952349]
[1738686283042,18.0952349,215.95,215.87,22.7276349]
[1738686283240,18.0952349,215.99,215.91,18.0952349]
[1738686283413,18.0952349,216.01,215.93,18.0952349]
[1738686283614,18.0952349,216.03,215.95,18.0952349]
[1738686283944,4.6283,216.06,215.99,18.0952349]
[1738686284437,18.0952349,216.05,215.97,18.0952349]
[1738686284646,18.0952349,216.03,215.95,18.0952349]
[1738686285732,4.6292,216.02,215.95,18.0952349]
[1738686286046,4.6283,216.06,215.99,18.0952349]
[1738686286345,4.6279,216.08,216.01,18.0952349]
[1738686287252,13.1913,216.12,216.05,18.0952349]
[1738686287452,0.063,216.13,216.09,18.0952349]
[1738686287630,0.063,216.13,216.11,18.0952349]
[1738686287949,0.063,216.13,216.09,18.0952349]
[1738686288332,18.1582349,216.13,216.05,18.0952349]
[1738686289654,18.0952349,216.11,216.03,18.0952349]
[1738686289853,4.6274,216.1,216.03,18.0952349]
[1738686291159,4.6271,216.12,216.05,18.0952349]
[1738686291888,18.2207249,216.11,216.03,18.0952349]
[1738686292155,0.12549,216.11,216.04,18.0952349]
[1738686292457,4.6271,216.12,216.04,18.0952349]
[1738686292636,22.7223349,216.12,216.04,18.0952349]
[1738686292838,18.0952349,216.1,216.02,18.0952349]
[1738686293023,4.6277,216.09,216.02,18.0952349]
[1738686293232,18.0952349,216.08,216.02,18.0952349]
[1738686293758,18.0952349,216.06,216.0,18.0952349]
[1738686294065,18.0952349,216.06,215.98,18.0952349]
[1738686294437,18.0952349,216.04,215.98,18.0952349]
[1738686294638,18.0952349,216.04,215.96,38.0952349]
[1738686295071,22.7240349,216.04,215.96,18.0952349]
[1738686295366,18.0952349,216.02,215.94,22.7260349]
[1738686295573,22.7240349,216.04,215.96,18.0952349]
[1738686295955,4.6285,216.05,215.98,18.0952349]
[1738686296669,18.0952349,216.04,215.96,18.0952349]
[1738686297053,22.7240349,216.04,215.96,18.0952349]
[1738686298372,18.0952349,216.02,215.94,18.0952349]
[1738686298588,18.0952349,216.0,215.92,18.0952349]
[1738686299064,22.7249349,216.0,215.92,22.7264349]
[1738686299666,22.7245349,216.02,215.94,18.0952349]
[1738686299860,31.4228349,216.04,215.96,18.0952349]
[1738686300258,17.9564,216.04,215.98,18.0952349]
[1738686301459,18.0952349,215.99,215.91,18.1252349]
[1738686301760,18.0952349,216.03,215.95,18.0952349]
[1738686302264,22.7237349,216.06,215.98,18.0952349]
[1738686302579,4.628,216.08,216.02,18.0952349]
[1738686302756,18.0952349,216.07,215.99,18.0952349]
[1738686302956,18.0952349,216.05,215.97,18.0952349]
[1738686303281,22.7239349,216.04,215.97,18.0952349]
[1738686304358,4.6287,216.04,215.97,18.0952349]
[1738686304746,4.6285,216.05,215.97,18.0952349]
[1738686304946,4.6285,216.05,215.99,18.0952349]
[1738686305686,4.6283,216.07,216.01,18.0952349]
[1738686305855,4.6283,216.07,215.99,18.0952349]
[1738686306053,18.0952349,216.06,215.99,18.0952349]
[1738686306279,4.6283,216.07,215.99,18.0952349]
[1738686306670,22.7231349,216.08,216.01,18.0952349]
[1738686306886,4.6279,216.08,216.01,18.0952349]
[1738686307279,4.6279,216.08,216.03,18.0952349]
[1738686307653,13.0919,216.09,216.03,18.0952349]
[1738686307975,17.7196,216.09,216.03,18.0952349]
[1738686308274,18.0952349,216.12,216.05,18.0952349]
[1738686308459,4.627,216.12,216.07,18.0952349]
[1738686308665,0.063,216.13,216.09,18.0952349]
[1738686308857,0.063,216.13,216.11,18.0952349]
[1738686310883,0.063,216.13,216.11,22.7223349]
[1738686313161,0.063,216.13,216.11,18.0952349]
[1738686313369,0.063,216.13,216.07,18.0952349]
[1738686314255,0.063,216.13,216.09,18.0952349]
[1738686314466,0.016691,216.13,216.09,18.0952349]
[1738686315693,0.016691,216.13,216.03,3.9709]
[1738686315694,0.016691,216.13,216.07,18.0952349]
[1738686316059,0.016691,216.13,216.11,18.0952349]
[1738686316783,0.016691,216.13,216.12,0.25098]
[1738686317087,0.016691,216.13,216.12,0.94484702]
[1738686317762,0.016691,216.13,216.12,4.627]
[1738686317959,0.016691,216.13,216.12,5.32087548]
[1738686318203,0.016691,216.13,216.12,5.57185548]
[1738686318503,0.016691,216.13,216.12,4.627]
[1738686318726,0.016691,216.13,216.09,18.0952349]
[1738686318873,18.0952349,216.12,216.05,18.0952349]
[1738686319075,18.0952349,216.12,216.03,18.0952349]
[1738686319273,0.016691,216.13,216.05,18.0952349]
[1738686319472,0.016691,216.13,216.11,18.0952349]
[1738686319696,0.016691,216.13,216.12,5.57185147]
[1738686319907,0.016691,216.13,216.12,1.94798]
[1738686320111,0.016691,216.13,216.11,18.0952349]
[1738686321404,0.016691,216.13,216.09,18.0952349]
[1738686322286,0.016691,216.13,216.05,18.0952349]
[1738686322487,0.016691,216.13,216.07,18.0952349]
[1738686323404,4.768981,216.13,216.05,18.0952349]
[1738686323606,18.0952349,216.12,216.05,18.0952349]
[1738686323815,18.0952349,216.12,216.03,18.0952349]
[1738686324316,18.0952349,216.12,216.05,18.0952349]
[1738686324884,0.016691,216.13,216.07,18.0952349]
[1738686325107,0.016691,216.13,216.06,18.0952349]
[1738686326027,0.016691,216.13,216.09,0.03]
[1738686327095,0.142181,216.13,216.09,0.03]
[1738686327416,18.0952349,216.12,216.09,0.03]
[1738686327990,38.0952349,216.1,216.09,0.03]
[1738686328196,51.4657249,216.1,216.09,0.03]
[1738686328394,52.3402349,216.1,215.97,0.03]
[1738686328616,18.0952349,216.03,215.97,0.03]
[1738686329000,4.6292,216.02,215.97,0.03]
[1738686329203,18.0952349,216.03,215.97,0.03]
[1738686329410,22.7242349,216.03,215.97,0.03]
[1738686330210,22.7235349,216.07,216.0,18.0952349]
[1738686330410,4.6283,216.07,216.01,18.0952349]
[1738686330606,4.6279,216.08,216.01,18.0952349]
[1738686331319,0.37647,216.06,215.99,18.0952349]
[1738686331629,0.37647,216.06,215.97,0.03]
[1738686331630,18.2207249,216.05,215.97,0.03]
[1738686331830,18.0952349,216.03,215.97,0.03]
[1738686331997,18.0952349,216.01,215.97,0.03]
[1738686333195,18.0952349,216.07,215.99,18.0952349]
[1738686333401,4.6279,216.08,216.01,18.0952349]
[1738686333634,22.7231349,216.08,216.0,18.0952349]
[1738686334627,4.6279,216.08,216.02,18.0952349]
[1738686334927,22.7231349,216.08,216.0,18.0952349]
[1738686335814,22.7231349,216.08,216.0,22.7247349]
[1738686336130,22.7231349,216.08,216.0,18.0952349]
[1738686336951,22.7231349,216.08,215.97,0.03]
[1738686336952,18.0952349,216.04,215.97,0.03]
[1738686337226,18.0952349,216.02,215.97,0.03]
[1738686337709,4.6294,216.01,215.97,0.03]
[1738686339128,1.0,216.08,216.0,18.0952349]
[1738686339129,18.0952349,216.08,216.0,18.0952349]
[1738686339333,31.3402349,216.1,216.02,18.0952349]
[1738686339626,4.6907,216.09,216.02,18.0952349]
[1738686340133,4.6907,216.09,216.02,22.7243349]
[1738686340430,4.6907,216.09,216.02,18.0952349]
[1738686340641,18.0952349,216.06,215.98,18.0952349]
[1738686340808,0.12549,216.05,215.98,18.0952349]
[1738686341008,18.0952349,216.02,215.97,0.03]
[1738686341635,18.2598,216.09,215.97,0.03]
[1738686341636,18.5971949,215.98,215.97,0.03]
[1738686341814,23.2271949,215.98,215.97,0.03]
[1738686342215,36.4151949,215.98,215.97,0.03]
[1738686343148,0.50196,215.97,215.91,0.03]
[1738686343431,18.2207249,215.92,215.91,0.03]
[1738686344134,22.8520249,215.92,215.91,0.03]
[1738686344644,23.2284949,215.92,215.91,0.03]
[1738686345529,18.0952349,215.84,215.82,0.03]
[1738686346105,18.0952349,215.86,215.82,0.03]
[1738686346311,18.0952349,215.88,215.82,0.03]
[1738686346632,0.12549,215.9,215.83,18.0952349]
[1738686346834,22.7268349,215.91,215.83,18.0952349]
[1738686347329,18.0952349,215.91,215.83,18.0952349]
[1738686347523,18.0952349,215.85,215.82,0.03]
[1738686348040,0.12549,215.84,215.82,0.03]
[1738686348260,22.8539249,215.83,215.82,0.03]
[1738686348931,23.2303949,215.83,215.82,0.03]
[1738686350341,24.2303949,215.83,215.82,0.03]
[1738686350540,0.50196,215.82,215.75,0.03]
[1738686350751,18.2207249,215.76,215.75,0.03]
[1738686350954,18.5971949,215.76,215.75,0.03]
[1738686351249,18.0952349,215.76,215.75,0.03]
[1738686351437,18.0952349,215.78,215.75,0.03]
[1738686351634,18.0952349,215.8,215.75,0.03]
[1738686351971,18.0952349,215.82,215.75,0.03]
[1738686352452,18.0952349,215.82,215.75,4.6649]
[1738686352944,0.12549,215.84,215.78,18.0952349]
[1738686353157,22.8538249,215.84,215.76,18.0952349]
[1738686354550,18.2207249,215.82,215.75,4.6649]
[1738686354751,18.2207249,215.82,215.75,0.03]
[1738686355651,18.0952349,215.82,215.75,0.03]
[1738686356565,0.50196,215.81,215.75,0.03]
[1738686356737,18.0952349,215.78,215.75,0.03]
[1738686357968,18.0952349,215.8,215.75,0.03]
[1738686358138,24.0889,215.85,215.76,18.0952349]
[1738686358139,18.0952349,215.84,215.76,18.0952349]
[1738686358541,18.2207249,215.86,215.78,18.0952349]
[1738686358861,22.8533249,215.86,215.78,18.0952349]
[1738686359352,18.0952349,215.88,215.8,18.0952349]
[1738686359751,0.12549,215.89,215.82,18.0952349]
[1738686360941,4.75749,215.89,215.82,18.0952349]
[1738686361168,18.0952349,215.88,215.81,4.6336]
[1738686362364,22.7274349,215.88,215.81,4.6336]
[1738686362567,0.12549,215.89,215.82,18.0952349]
[1738686363368,4.75759,215.89,215.82,18.0952349]
[1738686364144,18.0952349,215.9,215.84,18.0952349]
[1738686364332,18.0952349,215.9,215.82,18.0952349]
[1738686364562,18.0952349,215.88,215.8,22.7589349]
[1738686364733,18.0952349,215.9,215.82,18.0952349]
[1738686364935,0.063,215.91,215.88,18.0952349]
[1738686365148,0.063,215.91,215.9,18.0952349]
[1738686365355,0.063,215.91,215.85,18.0952349]
[1738686365552,0.12549,215.85,215.8,0.03]
[1738686365769,18.0952349,215.84,215.8,0.03]
[1738686366150,22.7284349,215.84,215.8,0.03]
[1738686366351,18.0952349,215.88,215.8,0.03]
[1738686366567,22.7271349,215.89,215.81,18.0952349]
[1738686366737,22.7271349,215.89,215.8,0.03]
[1738686366738,18.0952349,215.87,215.8,0.03]
[1738686366937,18.0952349,215.85,215.8,0.03]
[1738686368161,4.633,215.84,215.8,0.03]
[1738686369441,18.2207249,215.81,215.8,0.03]
[1738686369645,18.5971949,215.81,215.8,0.03]
[1738686369846,0.12549,215.79,215.75,0.03]
[1738686370165,23.2318949,215.76,215.75,0.03]
[1738686371574,22.7299349,215.76,215.75,0.03]
[1738686371863,18.0952349,215.82,215.75,0.03]
[1738686372071,22.7282349,215.84,215.75,18.1252349]
[1738686372270,4.633,215.84,215.76,18.0952349]
[1738686372442,18.0952349,215.83,215.76,18.0952349]
[1738686372769,0.50196,215.76,215.75,0.03]
[1738686373061,18.0952349,215.77,215.75,0.03]
[1738686373747,4.6347,215.76,215.75,0.03]
[1738686373939,18.0952349,215.77,215.75,0.03]
[1738686374136,18.0952349,215.79,215.75,0.03]
[1738686374337,4.6341,215.8,215.75,0.03]
[1738686375055,4.6336,215.82,215.76,18.0952349]
[1738686375250,22.7285349,215.83,215.76,18.0952349]
[1738686375446,22.7281349,215.85,215.76,18.0952349]
[1738686375652,22.7281349,215.85,215.78,18.0952349]
[1738686375850,0.50196,215.84,215.76,18.0952349]
[1738686376062,0.50196,215.84,215.75,0.03]
[1738686376063,18.0952349,215.81,215.75,0.03]
[1738686377573,18.0952349,215.79,215.75,0.03]
[1738686377751,0.12549,215.8,215.75,0.03]
[1738686378072,4.6337,215.81,215.76,18.0952349]
[1738686378639,22.7286349,215.83,215.76,18.0952349]
[1738686378863,4.6329,215.85,215.78,18.0952349]
[1738686379062,4.6326,215.86,215.8,18.0952349]
[1738686379273,18.0952349,215.87,215.8,18.0952349]
[1738686379571,4.6323,215.88,215.8,18.0952349]
[1738686380359,4.6323,215.88,215.8,22.7291349]
[1738686380568,4.6323,215.88,215.8,18.0952349]
[1738686380769,18.2207249,215.85,215.78,18.0952349]
[1738686381575,18.2207249,215.85,215.76,18.0952349]
[1738686382569,0.12549,215.83,215.76,18.0952349]
[1738686382881,18.0952349,215.81,215.75,0.03]
[1738686383056,18.0952349,215.83,215.75,0.03]
[1738686383375,18.0952349,215.87,215.8,18.0952349]
[1738686383948,4.6322,215.88,215.8,18.0952349]
[1738686384347,18.2207249,215.87,215.8,18.0952349]
[1738686384877,18.0952349,215.87,215.8,18.0952349]
[1738686385178,4.6326,215.86,215.8,18.0952349]
[1738686385376,4.6322,215.88,215.8,18.0952349]
[1738686385677,4.6322,215.88,215.82,18.0952349]
[1738686386051,0.063,215.85,215.82,18.0952349]
[1738686388375,0.063,215.85,215.78,18.0952349]
[1738686388572,0.50196,215.84,215.76,18.1252349]
[1738686388880,22.7284349,215.83,215.76,0.03]
[1738686389255,4.6332,215.83,215.78,18.0952349]
[1738686390148,22.7284349,215.83,215.76,18.1252349]
[1738686390353,18.0952349,215.81,215.76,0.03]
[1738686390570,0.12549,215.82,215.76,0.03]
[1738686390571,18.0952349,215.79,215.76,0.03]
[1738686390893,18.0952349,215.81,215.76,0.03]
[1738686391953,18.0952349,215.83,215.76,18.1252349]
[1738686392151,4.6332,215.84,215.78,18.0952349]
[1738686393079,0.063,215.85,215.78,18.0952349]
[1738686393657,0.063,215.85,215.8,18.0952349]
[1738686394500,0.063,215.85,215.84,18.0952349]
[1738686395382,0.063,215.85,215.84,22.7282349]
[1738686396287,0.063,215.85,215.84,23.92489761]
[1738686396590,0.063,215.89,215.88,18.0952349]
[1738686397487,0.063,215.89,215.88,22.7274349]
[1738686400894,0.063,215.91,215.9,20.37647]
[1738686401203,0.063,215.91,215.9,39.1661446]
[1738686401370,0.063,215.91,215.9,38.0952349]
[1738686403297,0.063,215.91,215.9,43.2288949]
[1738686405695,0.063,215.91,215.9,43.1034049]
[1738686407000,0.063,215.91,215.9,43.7979196]
[1738686407300,4.6917,216.05,215.91,0.37647]
[1738686407597,4.6917,216.05,215.98,18.0952349]
[1738686407773,22.7869349,216.05,215.97,18.0952349]
[1738686408472,0.50196,216.02,215.86,0.69443617]
[1738686408698,0.50196,216.02,215.85,21.450135]
[1738686408699,18.0952349,215.92,215.85,7.9877]
[1738686409192,18.0952349,215.94,215.86,18.0952349]
[1738686409401,18.0952349,215.96,215.88,18.0952349]
[1738686409578,0.50196,216.02,215.9,18.0952349]
[1738686409579,18.0952349,215.98,215.9,18.0952349]
[1738686410475,4.6302,215.97,215.9,18.0952349]
[1738686411604,18.0952349,216.02,215.94,18.0952349]
[1738686411803,22.7239349,216.04,215.98,18.0952349]
[1738686411986,4.6287,216.04,215.98,18.0952349]
[1738686412175,4.6287,216.04,215.96,18.0952349]
[1738686412501,4.6287,216.04,215.91,0.40647]
[1738686412502,18.0952349,216.01,215.92,18.0952349]
[1738686412686,18.0952349,215.99,215.92,18.0952349]
[1738686413088,18.0952349,216.01,215.94,18.0952349]
[1738686413894,4.6296,216.0,215.94,18.0952349]
[1738686415407,4.6296,216.0,215.92,18.0952349]
[1738686416686,18.2207249,215.99,215.92,18.0952349]
[1738686417405,18.2207249,215.99,215.91,0.03]
[1738686417697,18.0952349,215.97,215.91,0.03]
[1738686417903,18.0952349,215.95,215.91,0.03]
[1738686418481,18.0952349,215.93,215.91,0.03]
[1738686419083,18.0952349,215.95,215.91,0.03]
[1738686419315,22.7256349,215.96,215.91,0.03]
[1738686420002,18.0952349,215.95,215.91,0.03]
[1738686420706,4.6307,215.95,215.91,0.03]
[1738686421088,18.0952349,215.93,215.91,0.03]
[1738686421312,0.37647,215.91,215.82,18.0952349]
[1738686421508,18.0952349,215.86,215.79,18.095235]
[1738686421804,18.0952349,215.87,215.8,18.0952349]
[1738686422011,18.0952349,215.85,215.78,18.0952349]
[1738686422207,18.0952349,215.83,215.77,0.03]
[1738686422511,18.0952349,215.81,215.77,0.03]
[1738686422714,4.6338,215.81,215.77,0.03]
[1738686422882,18.0952349,215.83,215.77,0.03]
[1738686423212,18.0952349,215.85,215.78,18.0952349]
[1738686423504,22.7276349,215.87,215.79,18.0952349]
[1738686423723,18.0952349,215.86,215.79,18.0952349]
[1738686423894,22.7276349,215.87,215.8,18.0952349]
[1738686424284,18.0952349,215.89,215.8,18.0952349]
[1738686424486,18.0952349,215.88,215.8,18.0952349]
[1738686424797,22.7280349,215.85,215.77,18.1252349]
[1738686425108,22.7280349,215.85,215.77,22.7597349]
[1738686425405,4.6328,215.85,215.78,18.0952349]
[1738686426311,18.0952349,215.86,215.8,18.0952349]
[1738686426509,20.0,215.9,215.82,18.0952349]
[1738686426697,4.6319,215.89,215.82,18.0952349]
[1738686426899,22.7271349,215.89,215.82,18.0952349]
[1738686427200,0.063,215.91,215.84,18.0952349]
[1738686427508,0.063,215.91,215.88,18.0952349]
[1738686427811,0.063,215.91,215.9,18.0952349]
[1738686428813,0.063,215.91,215.9,22.7269349]
[1738686430526,0.063,215.91,215.9,27.14202573]
[1738686430683,0.063,216.05,215.95,20.0]
[1738686430891,0.063,216.05,216.04,18.0952349]
[1738686431092,0.063,216.05,216.04,36.1904698]
[1738686431489,0.063,216.05,216.04,18.0952349]
[1738686434919,0.063,216.05,216.04,18.4717049]
[1738686435217,0.063,216.09,216.08,20.0]
[1738686435514,0.063,216.09,216.08,38.0952349]
[1738686435715,0.063,216.09,216.08,38.4717049]
[1738686435922,0.063,216.09,216.08,18.4717049]
[1738686436424,0.0001,216.09,216.08,39.5971949]
[1738686436720,0.063,216.11,216.1,20.37647]
[1738686436895,0.063,216.11,216.1,39.16551216]
[1738686437102,0.063,216.11,216.1,43.79291216]
[1738686437522,0.063,216.11,216.1,44.93391256]
[1738686438917,0.063,216.11,216.1,42.7226349]
[1738686439334,0.063,216.11,216.1,43.0991049]
[1738686440025,0.063,216.2,216.13,0.12549]
[1738686440230,0.063,216.2,216.19,18.0952349]
[1738686440598,0.063,216.2,216.18,18.0952349]
[1738686440797,0.063,216.2,216.19,18.0952349]
[1738686444105,0.063,216.2,216.15,18.0952349]
[1738686445523,0.063,216.2,216.19,18.0952349]
[1738686446311,0.063,216.2,216.19,18.2207249]
[1738686446512,0.063,216.23,216.22,20.0]
[1738686446830,0.063,216.23,216.22,42.53997974]
[1738686447027,0.063,216.25,216.23,0.37647]
[1738686447230,0.063,216.25,216.24,61.88475942]
[1738686447528,0.063,216.25,216.24,42.7196349]
[1738686449830,0.063,216.25,216.24,43.7896105]
[1738686450037,0.063,216.25,216.24,42.7196349]
[1738686450538,0.063,216.25,216.24,18.0952349]
[1738686451038,0.063,216.25,216.23,18.0952349]
[1738686451236,0.063,216.25,216.22,18.0952349]
[1738686451442,0.063,216.25,216.2,18.0952349]
[1738686451648,0.063,216.25,216.21,18.0952349]
[1738686453043,0.063,216.25,216.22,18.0952349]
[1738686453554,0.063,216.25,216.24,18.0952349]
[1738686456919,0.063,216.25,216.21,18.0952349]
[1738686457119,0.063,216.25,216.22,18.0952349]
[1738686457947,0.063,216.25,216.23,18.0952349]
[1738686459146,0.063,216.25,216.22,18.0952349]
[1738686459554,0.063,216.25,216.23,18.0952349]
[1738686461822,0.063,216.25,216.21,18.0952349]
[1738686463054,18.1582349,216.25,216.17,18.0952349]
[1738686463359,0.063,216.25,216.18,18.0952349]
[1738686463568,4.6244,216.24,216.18,18.0952349]
[1738686464129,4.6244,216.24,216.19,18.0952349]
[1738686464344,0.18849,216.25,216.18,18.0952349]
[1738686464576,22.9079249,216.25,216.17,18.0952349]
[1738686465433,22.9079249,216.25,216.17,18.1252349]
[1738686467331,4.81269,216.25,216.18,18.0952349]
[1738686468044,4.6872,216.25,216.2,18.0952349]
[1738686468239,0.063,216.25,216.23,18.0952349]
[1738686468966,0.063,216.25,216.24,18.0952349]
[1738686469350,0.063,216.25,216.23,18.0952349]
[1738686470872,0.063,216.25,216.24,18.0952349]
[1738686472751,0.063,216.25,216.24,22.7196349]
[1738686474752,0.063,216.25,216.23,18.0952349]
[1738686475148,0.063,216.25,216.24,18.0952349]
[1738686475575,0.063,216.25,216.23,18.0952349]
[1738686476985,0.063,216.25,216.24,18.0952349]
[1738686477857,0.063,216.25,216.24,22.7196349]
[1738686479083,0.063,216.25,216.24,18.0952349]
[1738686480168,0.063,216.25,216.22,18.0952349]
[1738686480962,0.063,216.25,216.23,18.0952349]
[1738686481666,0.063,216.25,216.24,18.0952349]
[1738686481884,0.063,216.25,216.24,37.26049665]
[1738686482090,0.063,216.27,216.26,56.1904698]
[1738686482272,0.063,216.31,216.26,56.5669398]
[1738686482465,0.063,216.31,216.3,18.0952349]
[1738686483484,0.063,216.32,216.3,23.4117055]
[1738686483789,7.19664275,216.42,216.34,20.0]
[1738686483790,7.01164275,216.42,216.34,20.0]
[1738686483967,7.01164275,216.42,216.41,18.0952349]
[1738686485159,11.63234275,216.42,216.38,18.0952349]
[1738686485360,7.01164275,216.42,216.39,18.0952349]
[1738686485578,7.01164275,216.42,216.41,18.0952349]
[1738686485777,4.6199,216.46,216.41,18.0952349]
[1738686486880,0.063,216.47,216.41,18.0952349]
[1738686487067,0.18849,216.47,216.41,18.0952349]
[1738686487394,0.18849,216.47,216.39,18.0952349]